fUST/lending_fUST_20240808
["ID","MTS","AMOUNT","RATE_DAILY","PERIOD"]
[334449712,1723105844617,-504.53910335,0.00027397,7]
[334449713,1723105844629,-500.0,0.00027397,7]
[334449714,1723105844639,-500.68214296,0.00027397,7]
[334449715,1723105844649,-500.0,0.00027397,7]
[334449716,1723105844658,-500.0,0.00027397,7]
[334449717,1723105844668,-503.14464917,0.00027397,7]
[334449718,1723105844678,-522.35,0.00027397,7]
[334449719,1723105844687,-151.0,0.00027397,7]
[334449720,1723105844696,-500.0,0.00027397,7]
[334449721,1723105844706,-151.0,0.00027397,7]
[334449722,1723105844716,-500.0,0.00027397,7]
[334449723,1723105844725,-500.0,0.00027397,7]
[334449724,1723105844735,-212.412977,0.00027397,7]
[334449725,1723105844744,-212.412977,0.00027397,7]
[334449726,1723105844753,-845.58,0.00027397,7]
[334449727,1723105844763,-500.0,0.00027397,7]
[334449728,1723105844773,-366.79524006,0.00027397,7]
[334449729,1723105844782,-212.412977,0.00027397,7]
[334449730,1723105844792,-212.412977,0.00027397,7]
[334449731,1723105844802,-429.85259689,0.00027397,7]
[334449732,1723105844812,-556.81,0.00027397,7]
[334449733,1723105844822,-500.0,0.00027397,7]
[334449734,1723105844832,-179.26720444,0.00027397,7]
[334449735,1723105844841,-500.0,0.00027397,7]
[334449736,1723105844851,-500.0,0.00027397,7]
[334449737,1723105844861,-1025.01,0.00027397,7]
[334449738,1723105844870,-500.0,0.00027397,7]
[334449739,1723105844883,-500.0,0.00027397,7]
[334449740,1723105844892,-535.22,0.00027397,7]
[334449741,1723105844901,-500.0,0.00027397,7]
[334449742,1723105844911,-500.0,0.00027397,7]
[334449743,1723105844921,-1376.71,0.00027397,7]
[334449744,1723105844930,-500.0,0.00027397,7]
[334449745,1723105844940,-500.0,0.00027397,7]
[334449746,1723105844951,-2067.39,0.00027397,7]
[334449747,1723105844961,-549.87,0.00027397,7]
[334449748,1723105844971,-500.0,0.00027397,7]
[334449749,1723105844983,-500.0,0.00027397,7]
[334449750,1723105844992,-517.25,0.00027397,7]
[334449751,1723105845003,-500.0,0.00027397,7]
[334449752,1723105845012,-534.55733801,0.00027397,7]
[334449753,1723105845024,-576.99,0.00027397,7]
[334449754,1723105845034,-1648.64,0.00027397,7]
[334449755,1723105845044,-576.99,0.00027397,7]
[334449756,1723105845054,-576.99,0.00027397,7]
[334449757,1723105845063,-576.99,0.00027397,7]
[334449758,1723105845072,-576.99,0.00027397,7]
[334449759,1723105845082,-576.99,0.00027397,7]
[334449760,1723105845091,-576.99,0.00027397,7]
[334449761,1723105845100,-500.0,0.00027397,7]
[334449762,1723105845109,-576.99,0.00027397,7]
[334449763,1723105845119,-576.99,0.00027397,7]
[334449764,1723105845131,-576.99,0.00027397,7]
[334449765,1723105845140,-576.99,0.00027397,7]
[334449766,1723105845149,-576.99,0.00027397,7]
[334449767,1723105845158,-576.99,0.00027397,7]
[334449768,1723105845168,-576.99,0.00027397,7]
[334449769,1723105845178,-504.56980752,0.00027397,7]
[334449770,1723105845188,-576.99,0.00027397,7]
[334449771,1723105845198,-576.99,0.00027397,7]
[334449772,1723105845207,-576.99,0.00027397,7]
[334449773,1723105845216,-576.99,0.00027397,7]
[334449774,1723105845225,-576.99,0.00027397,7]
[334449775,1723105845234,-576.99,0.00027397,7]
[334449776,1723105845244,-151.0,0.00027397,7]
[334449777,1723105845253,-151.0,0.00027397,7]
[334449778,1723105845262,-151.0,0.00027397,7]
[334449779,1723105845272,-576.99,0.00027397,7]
[334449780,1723105845281,-576.99,0.00027397,7]
[334449781,1723105845290,-151.0,0.00027397,7]
[334449782,1723105845299,-500.0,0.00027397,7]
[334449783,1723105845308,-576.99,0.00027397,7]
[334449784,1723105845318,-577.14925933,0.00027397,7]
[334449785,1723105845327,-500.0,0.00027397,2]
[334449786,1723105845336,-151.0,0.00027397,7]
[334449787,1723105845345,-151.0,0.00027397,7]
[334449788,1723105845355,-500.0,0.00027397,7]
[334449789,1723105845364,-500.0,0.00027397,7]
[334449790,1723105845373,-2091.39,0.00027397,7]
[334449791,1723105845385,-501.50656828,0.00027397,7]
[334449792,1723105845395,-500.0,0.00027397,7]
[334449793,1723105845404,-500.0,0.00027397,7]
[334449794,1723105845413,-500.0,0.00027397,7]
[334449795,1723105845422,-500.0,0.00027397,7]
[334449796,1723105845432,-2435.78,0.00027397,7]
[334449797,1723105845441,-503.17186054,0.00027397,7]
[334449798,1723105845451,-611.05,0.00027397,7]
[334449799,1723105845462,-2002.33,0.00027397,7]
[334449800,1723105845472,-500.0,0.00027397,7]
[334449801,1723105845481,-500.0,0.00027397,7]
[334449802,1723105845491,-500.0,0.00027397,7]
[334449803,1723105845501,-500.0,0.00027397,7]
[334449804,1723105845510,-505.13645794,0.00027397,7]
[334449805,1723105845519,-500.0,0.00027397,7]
[334449806,1723105845529,-501.09278472,0.00027397,7]
[334449807,1723105845538,-510.23759495,0.00027397,7]
[334449808,1723105845550,-500.0,0.00027397,7]
[334449809,1723105845559,-500.0,0.00027397,7]
[334449810,1723105845570,-2994.86,0.00027397,7]
[334449811,1723105845581,-205.240839,0.00027397,7]
[334449812,1723105845591,-205.240839,0.00027397,7]
[334449813,1723105845600,-503.38556965,0.00027397,7]
[334449814,1723105845610,-500.0,0.00027397,7]
[334449815,1723105845620,-500.71221557,0.00027397,7]
[334449816,1723105845632,-500.0,0.00027397,7]
[334449817,1723105845641,-500.0,0.00027397,7]
[334449818,1723105845650,-500.0,0.00027397,7]
[334449819,1723105845659,-500.0,0.00027397,7]
[334449820,1723105845670,-501.48401795,0.00027397,7]
[334449821,1723105845679,-500.0,0.00027397,7]
[334449822,1723105845688,-1199.36,0.00027397,7]
[334449823,1723105845698,-2657.73,0.00027397,7]
[334449824,1723105845707,-500.0,0.00027397,7]
[334449825,1723105845717,-500.0,0.00027397,7]
[334449826,1723105845726,-676.577871,0.00027397,7]
[334449827,1723105845737,-676.577871,0.00027397,7]
[334449828,1723105845747,-187.45165012,0.00027397,7]
[334449829,1723105845758,-501.66242144,0.00027397,7]
[334449830,1723105845768,-676.577871,0.00027397,7]
[334449831,1723105845778,-676.577871,0.00027397,7]
[334449832,1723105845788,-503.53223394,0.00027397,7]
[334449833,1723105845797,-500.0,0.00027397,7]
[334449834,1723105845808,-500.0,0.00027397,7]
[334449835,1723105845818,-500.0,0.00027397,7]
[334449836,1723105845828,-500.0,0.00027397,7]
[334449837,1723105845837,-2321.95,0.00027397,7]
[334449838,1723105845846,-500.0,0.00027397,7]
[334449839,1723105845857,-500.0,0.00027397,7]
[334449840,1723105845867,-500.0,0.00027397,7]
[334449841,1723105845877,-500.0,0.00027397,7]
[334449842,1723105845887,-500.0,0.00027397,7]
[334449843,1723105845898,-500.0,0.00027397,7]
[334449844,1723105845909,-504.50701379,0.00027397,7]
[334449845,1723105845919,-501.48973996,0.00027397,7]
[334449846,1723105845929,-500.0,0.00027397,7]
[334449847,1723105845939,-500.0,0.00027397,7]
[334449848,1723105845949,-2264.42,0.00027397,7]
[334449849,1723105845960,-500.0,0.00027397,7]
[334449850,1723105845970,-563.49,0.00027397,7]
[334449853,1723105846137,-500.0,0.00027397,7]
[334449854,1723105846148,-500.0,0.00027397,7]
[334449855,1723105846158,-500.0,0.00027397,7]
[334449856,1723105846168,-500.0,0.00027397,7]
[334449857,1723105846178,-500.0,0.00027397,7]
[334449858,1723105846187,-500.0,0.00027397,7]
[334449859,1723105846197,-698.54,0.00027397,7]
[334449860,1723105846206,-500.0,0.00027397,7]
[334449861,1723105846216,-500.0,0.00027397,7]
[334449862,1723105846225,-417.19383834,0.00027397,7]
[334449863,1723105846234,-501.03587894,0.00027397,7]
[334449864,1723105846244,-1754.32,0.00027397,7]
[334449865,1723105846254,-1858.49,0.00027397,7]
[334449866,1723105846263,-500.0,0.00027397,7]
[334449867,1723105846272,-11462.57,0.00027397,7]
[334449868,1723105846282,-1409.69,0.00027397,7]
[334449869,1723105846291,-500.0,0.00027397,7]
[334449870,1723105846301,-552.42347833,0.00027397,7]
[334449871,1723105846310,-500.0,0.00027397,7]
[334449872,1723105846320,-501.61935866,0.00027397,7]
[334449873,1723105846329,-500.0,0.00027397,7]
[334449874,1723105846339,-3044.5,0.00027397,7]
[334449875,1723105846348,-585.9,0.00027397,7]
[334449876,1723105846358,-500.0,0.00027397,7]
[334449877,1723105846367,-501.18642415,0.00027397,7]
[334449878,1723105846376,-500.0,0.00027397,7]
[334449880,1723105846388,-621.78,0.00027397,7]
[334449882,1723105846398,-500.0,0.00027397,7]
[334449883,1723105846407,-504.95050932,0.00027397,7]
[334449885,1723105846417,-367.64667449,0.00027397,7]
[334449886,1723105846427,-501.37373937,0.00027397,7]
[334449887,1723105846436,-7736.92,0.00027397,7]
[334449888,1723105846446,-500.0,0.00027397,7]
[334449890,1723105846455,-500.0,0.00027397,7]
[334449892,1723105846465,-537.61215408,0.00027397,7]
[334449893,1723105846474,-962.88,0.00027397,7]
[334449894,1723105846484,-1916.07,0.00027397,7]
[334449895,1723105846493,-866.29,0.00027397,7]
[334449896,1723105846503,-500.0,0.00027397,7]
[334449897,1723105846514,-500.0,0.00027397,7]
[334449898,1723105846523,-500.0,0.00027397,7]
[334449899,1723105846533,-500.0,0.00027397,7]
[334449900,1723105846542,-1843.48,0.00027397,7]
[334449901,1723105846554,-635.341889,0.00027397,7]
[334449902,1723105846563,-894.57,0.00027397,7]
[334449904,1723105846574,-635.341889,0.00027397,7]
[334449906,1723105846584,-500.0,0.00027397,7]
[334449907,1723105846594,-635.341889,0.00027397,7]
[334449908,1723105846604,-1227.54,0.00027397,7]
[334449909,1723105846613,-500.0,0.00027397,7]
[334449910,1723105846623,-635.341889,0.00027397,7]
[334449912,1723105846636,-503.48049863,0.00027397,7]
[334449914,1723105846645,-500.0,0.00027397,7]
[334449916,1723105846655,-539.32,0.00027397,7]
[334449918,1723105846665,-609.99,0.00027397,7]
[334449919,1723105846675,-500.0,0.00027397,7]
[334449920,1723105846685,-500.0,0.00027397,7]
[334449921,1723105846695,-1451.66,0.00027397,7]
[334449922,1723105846704,-501.27758262,0.00027397,7]
[334449923,1723105846714,-1267.71,0.00027397,7]
[334449924,1723105846724,-500.0,0.00027397,7]
[334449925,1723105846733,-501.10561582,0.00027397,7]
[334449926,1723105846744,-500.0,0.00027397,7]
[334449927,1723105846753,-500.0,0.00027397,7]
[334449928,1723105846763,-3079.46,0.00027397,7]
[334449929,1723105846773,-500.0,0.00027397,7]
[334449930,1723105846782,-500.0,0.00027397,7]
[334449931,1723105846792,-500.0,0.00027397,7]
[334449932,1723105846802,-1095.43,0.00027397,7]
[334449934,1723105846811,-500.0,0.00027397,7]
[334449935,1723105846821,-500.76014814,0.00027397,7]
[334449936,1723105846830,-500.0,0.00027397,7]
[334449937,1723105846840,-500.0,0.00027397,7]
[334449938,1723105846849,-151.0,0.00027397,7]
[334449939,1723105846858,-151.0,0.00027397,7]
[334449940,1723105846868,-500.0,0.00027397,7]
[334449941,1723105846878,-500.0,0.00027397,7]
[334449942,1723105846889,-500.0,0.00027397,7]
[334449943,1723105846899,-503.01306963,0.00027397,7]
[334449944,1723105846909,-2977.6,0.00027397,7]
[334449945,1723105846919,-501.13920242,0.00027397,7]
[334449946,1723105846928,-500.0,0.00027397,7]
[334449947,1723105846938,-1147.87,0.00027397,7]
[334449948,1723105846948,-501.33027628,0.00027397,7]
[334449949,1723105846959,-660.51,0.00027397,7]
[334449950,1723105846969,-500.0,0.00027397,7]
[334449951,1723105846979,-500.65385222,0.00027397,7]
[334449952,1723105846989,-151.0,0.00027397,7]
[334449953,1723105846999,-501.14761608,0.00027397,7]
[334449954,1723105847009,-1964.65,0.00027397,7]
[334449955,1723105847019,-500.0,0.00027397,7]
[334449956,1723105847029,-1111.54,0.00027397,7]
[334449957,1723105847039,-7888.5,0.00027397,7]
[334449958,1723105847049,-164.03824881,0.00027397,7]
[334449959,1723105847058,-500.0,0.00027397,7]
[334449960,1723105847068,-1634.92,0.00027397,7]
[334449961,1723105847078,-500.0,0.00027397,7]
[334449962,1723105847087,-281.30454022,0.00027397,7]
[334449963,1723105847097,-500.0,0.00027397,7]
[334449964,1723105847107,-500.0,0.00027397,7]
[334449965,1723105847118,-500.0,0.00027397,7]
[334449966,1723105847128,-500.0,0.00027397,7]
[334449967,1723105847140,-500.0,0.00027397,7]
[334449968,1723105847150,-598.07,0.00027397,7]
[334449969,1723105847162,-5075.75,0.00027397,7]
[334449970,1723105847172,-500.0,0.00027397,7]
[334449971,1723105847183,-500.0,0.00027397,7]
[334449972,1723105847193,-515.8683105,0.00027397,7]
[334449973,1723105847202,-502.68853072,0.00027397,7]
[334449974,1723105847212,-500.0,0.00027397,7]
[334449975,1723105847222,-500.0,0.00027397,7]
[334449976,1723105847232,-502.90519862,0.00027397,7]
[334449977,1723105847241,-500.0,0.00027397,7]
[334449978,1723105847251,-500.0,0.00027397,7]
[334449979,1723105847260,-500.0,0.00027397,7]
[334449980,1723105847270,-2439.74,0.00027397,7]
[334449981,1723105847280,-502.75137306,0.00027397,7]
[334449982,1723105847290,-459.18101564,0.00027397,7]
[334449983,1723105847299,-500.84658584,0.00027397,7]
[334449984,1723105847309,-500.0,0.00027397,7]
[334449985,1723105847318,-3113.94,0.00027397,7]
[334449986,1723105847328,-5000.95,0.00027397,7]
[334449987,1723105847338,-812.558115,0.00027397,7]
[334449988,1723105847347,-812.558115,0.00027397,7]
[334449989,1723105847357,-812.558115,0.00027397,7]
[334449990,1723105847367,-500.0,0.00027397,7]
[334449991,1723105847377,-500.0,0.00027397,7]
[334449992,1723105847392,-500.0,0.00027397,7]
[334449993,1723105847401,-495.81918734,0.00027397,7]
[334449994,1723105847412,-812.558115,0.00027397,7]
[334449995,1723105847422,-151.0,0.00027397,7]
[334449996,1723105847432,-812.558115,0.00027397,7]
[334449997,1723105847442,-151.0,0.00027397,7]
[334449998,1723105847452,-812.558115,0.00027397,7]
[334449999,1723105847462,-500.0,0.00027397,7]
[334450000,1723105847471,-151.0,0.00027397,7]
[334450001,1723105847482,-500.0,0.00027397,7]
[334450002,1723105847493,-500.0,0.00027397,7]
[334450003,1723105847502,-602.38,0.00027397,7]
[334450004,1723105847511,-500.0,0.00027397,7]
[334450005,1723105847521,-365.07951,0.00027397,7]
[334450006,1723105847530,-365.07951,0.00027397,7]
[334450007,1723105847540,-151.0,0.00027397,7]
[334450008,1723105847552,-160.217986,0.00027397,7]
[334450009,1723105847562,-1592.92,0.00027397,7]
[334450010,1723105847572,-980.57,0.00027397,7]
[334450011,1723105847583,-501.5616108,0.00027397,7]
[334450012,1723105847595,-792.334136,0.00027397,7]
[334450013,1723105847604,-500.0,0.00027397,7]
[334450014,1723105847614,-792.334136,0.00027397,7]
[334450015,1723105847624,-365.07951,0.00027397,7]
[334450016,1723105847636,-792.334136,0.00027397,7]
[334450017,1723105847646,-365.07951,0.00027397,7]
[334450018,1723105847656,-500.0,0.00027397,7]
[334450019,1723105847666,-500.0,0.00027397,7]
[334450020,1723105847675,-500.0,0.00027397,7]
[334450021,1723105847684,-792.334136,0.00027397,7]
[334450022,1723105847695,-792.334136,0.00027397,7]
[334450023,1723105847705,-500.0,0.00027397,7]
[334450024,1723105847714,-792.334136,0.00027397,7]
[334450025,1723105847723,-1083.55,0.00027397,7]
[334450026,1723105847733,-501.56616701,0.00027397,7]
[334450027,1723105847742,-500.0,0.00027397,7]
[334450028,1723105847751,-500.0,0.00027397,7]
[334450029,1723105847761,-1289.97,0.00027397,7]
[334450030,1723105847771,-500.0,0.00027397,7]
[334450031,1723105847780,-1260.28,0.00027397,7]
[334450032,1723105847790,-500.0,0.00027397,7]
[334450033,1723105847800,-500.0,0.00027397,7]
[334450034,1723105847809,-151.0,0.00027397,7]
[334450035,1723105847819,-502.81112584,0.00027397,7]
[334450036,1723105847828,-500.0,0.00027397,7]
[334450037,1723105847838,-151.0,0.00027397,7]
[334450038,1723105847848,-500.0,0.00027397,7]
[334450039,1723105847857,-500.0,0.00027397,7]
[334450040,1723105847868,-500.0,0.00027397,7]
[334450041,1723105847878,-500.80310453,0.00027397,7]
[334450042,1723105847890,-1239.59,0.00027397,7]
[334450043,1723105847900,-500.0,0.00027397,7]
[334450044,1723105847909,-799.17,0.00027397,7]
[334450045,1723105847918,-679.51,0.00027397,7]
[334450046,1723105847928,-661.14,0.00027397,7]
[334450047,1723105847938,-500.0,0.00027397,7]
[334450048,1723105847948,-1304.53,0.00027397,7]
[334450049,1723105847959,-500.0,0.00027397,7]
[334450050,1723105847968,-500.0,0.00027397,7]
[334450051,1723105847978,-500.0,0.00027397,7]
[334450052,1723105847988,-502.08967705,0.00027397,7]
[334450053,1723105847999,-500.0,0.00027397,7]
[334450054,1723105848009,-151.0,0.00027397,7]
[334450055,1723105848018,-713.43,0.00027397,7]
[334450056,1723105848029,-151.0,0.00027397,7]
[334450057,1723105848039,-976.65,0.00027397,7]
[334450058,1723105848049,-500.0,0.00027397,7]
[334450059,1723105848059,-500.0,0.00027397,7]
[334450060,1723105848069,-505.25966261,0.00027397,7]
[334450061,1723105848079,-500.0,0.00027397,7]
[334450062,1723105848089,-500.0,0.00027397,7]
[334450063,1723105848098,-500.0,0.00027397,7]
[334450064,1723105848108,-500.0,0.00027397,7]
[334450065,1723105848117,-507.63696915,0.00027397,7]
[334450066,1723105848127,-500.0,0.00027397,7]
[334450067,1723105848141,-500.0,0.00027397,7]
[334450068,1723105848156,-500.0,0.00027397,7]
[334450069,1723105848166,-500.0,0.00027397,7]
[334450070,1723105848176,-500.0,0.00027397,7]
[334450071,1723105848185,-500.0,0.00027397,7]
[334450072,1723105848195,-500.0,0.00027397,7]
[334450073,1723105848204,-500.0,0.00027397,7]
[334450074,1723105848214,-500.0,0.00027397,7]
[334450075,1723105848224,-500.0,0.00027397,7]
[334450076,1723105848233,-500.0,0.00027397,7]
[334450077,1723105848243,-500.0,0.00027397,7]
[334450078,1723105848252,-500.0,0.00027397,7]
[334450079,1723105848262,-500.0,0.00027397,7]
[334450080,1723105848272,-500.0,0.00027397,7]
[334450081,1723105848282,-500.0,0.00027397,7]
[334450082,1723105848291,-328.13180136,0.00027397,7]
[334450083,1723105848301,-4225.77,0.00027397,7]
[334450084,1723105848311,-500.0,0.00027397,7]
[334450085,1723105848321,-500.0,0.00027397,7]
[334450086,1723105848331,-646.5,0.00027397,7]
[334450087,1723105848340,-502.57389533,0.00027397,7]
[334450088,1723105848350,-500.0,0.00027397,7]
[334450089,1723105848360,-1148.55,0.00027397,7]
[334450090,1723105848369,-558.78990627,0.00027397,7]
[334450091,1723105848378,-500.0,0.00027397,7]
[334450092,1723105848390,-4723.92,0.00027397,7]
[334450093,1723105848400,-4723.92,0.00027397,7]
[334450094,1723105848409,-4723.92,0.00027397,7]
[334450095,1723105848419,-4723.92,0.00027397,7]
[334450096,1723105848428,-4723.92,0.00027397,7]
[334450097,1723105848438,-500.0,0.00027397,7]
[334450098,1723105848448,-4723.92,0.00027397,7]
[334450099,1723105848458,-4723.92,0.00027397,7]
[334450100,1723105848468,-4723.92,0.00027397,7]
[334450101,1723105848528,-4723.92,0.00027397,7]
[334450102,1723105848538,-4723.92,0.00027397,7]
[334450103,1723105848551,-4723.92,0.00027397,7]
[334450104,1723105848561,-2294.11891893,0.00027397,7]
[334450105,1723105848933,-2429.80108107,0.00027397,7]
[334450106,1723105848943,-500.0,0.00027397,7]
[334450107,1723105848954,-4723.92,0.00027397,7]
[334450108,1723105848964,-4723.92,0.00027397,7]
[334450109,1723105848973,-500.0,0.00027397,7]
[334450110,1723105848982,-1308.41496433,0.00027397,7]
[334450111,1723105848994,-3415.50503567,0.00027397,7]
[334450112,1723105849003,-4723.92,0.00027397,7]
[334450113,1723105849012,-4723.92,0.00027397,7]
[334450114,1723105849022,-3581.63,0.00027397,7]
[334450115,1723105849032,-4723.92,0.00027397,7]
[334450116,1723105849042,-4723.92,0.00027397,7]
[334450117,1723105849052,-4723.92,0.00027397,7]
[334450118,1723105849061,-4723.92,0.00027397,7]
[334450119,1723105849071,-4723.92,0.00027397,7]
[334450120,1723105849079,-4723.92,0.00027397,7]
[334450121,1723105849089,-539.071821,0.00027397,7]
[334450122,1723105849098,-539.071821,0.00027397,7]
[334450123,1723105849107,-539.071821,0.00027397,7]
[334450124,1723105849116,-539.071821,0.00027397,7]
[334450125,1723105849125,-150.112233,0.000274,10]
[334450126,1723105849136,-150.112233,0.000274,7]
[334450127,1723105849145,-159.0,0.0002748,17]
[334450128,1723105849154,-500.0,0.00027499,7]
[334450129,1723105849164,-22269.57030175,0.000275,2]
[334450130,1723105849176,-21499.61967805,0.000275,2]
[334450131,1723105849186,-207.1717265,0.00027562,2]
[334450132,1723105849196,-294.4971025,0.00027562,2]
[334450133,1723105849206,-294.4971025,0.00027562,2]
[334450134,1723105849216,-207.1717265,0.00027562,2]
[334450135,1723105849225,-153.0,0.00027562,2]
[334450136,1723105849234,-413.6654212,0.00027562,2]
[334450137,1723105849243,-294.4971025,0.00027562,2]
[334450138,1723105849253,-293.2897002,0.00027562,2]
[334450139,1723105849262,-153.0,0.00027616,2]
[334450140,1723105849272,-15944.04500749,0.00027669,2]
[334450141,1723105849281,-150.0,0.00027669,2]
[334450142,1723105849290,-151.0,0.00027669,7]
[334450143,1723105849300,-154.191438,0.00027669,7]
[334450144,1723105849309,-151.0,0.00027669,7]
[334450145,1723105849319,-264.702478,0.00027669,7]
[334450146,1723105849329,-151.0,0.00027669,7]
[334450147,1723105849338,-218.200989,0.00027669,7]
[334450148,1723105849348,-160.44662095,0.0002767,10]
[334450149,1723105849357,-151.0,0.0002767,7]
[334450150,1723105849367,-151.0,0.0002767,7]
[334450151,1723105849376,-500.0,0.0002767,7]
[334450152,1723105849387,-500.0,0.0002767,7]
[334450153,1723105849397,-446.91376089,0.0002767,7]
[334450154,1723105849406,-151.0,0.00027671,7]
[334450155,1723105849416,-151.0,0.00027671,7]
[334450156,1723105849425,-153.502971,0.00027671,7]
[334450157,1723105849435,-160.121955,0.00027671,7]
[334450158,1723105849445,-500.0,0.00027671,7]
[334450159,1723105849454,-349.61255464,0.00027671,7]
[334450160,1723105849465,-500.0,0.00027671,7]
[334450161,1723105849475,-500.0,0.00027671,7]
[334450162,1723105849485,-500.0,0.00027671,7]
[334450163,1723105849495,-503.31405096,0.00027671,7]
[334450164,1723105849504,-500.0,0.00027671,7]
[334450165,1723105849513,-541.76,0.00027671,7]
[334450166,1723105849523,-732.76,0.00027671,7]
[334450167,1723105849533,-151.0,0.00027671,7]
[334450168,1723105849542,-500.0,0.00027671,7]
[334450169,1723105849553,-500.0,0.00027671,7]
[334450170,1723105849562,-504.08853534,0.00027671,7]
[334450171,1723105849572,-500.0,0.00027671,7]
[334450172,1723105849581,-151.0,0.00027671,7]
[334450173,1723105849592,-500.0,0.00027671,7]
[334450174,1723105849602,-500.0,0.00027671,7]
[334450175,1723105849612,-500.0,0.00027671,7]
[334450176,1723105849621,-500.0,0.00027671,7]
[334450177,1723105849630,-500.0,0.00027671,7]
[334450178,1723105849640,-671.42,0.00027671,7]
[334450179,1723105849649,-516.19520943,0.00027671,7]
[334450180,1723105849659,-500.0,0.00027671,7]
[334450181,1723105849669,-500.0,0.00027671,7]
[334450182,1723105849679,-500.0,0.00027671,7]
[334450183,1723105849689,-500.0,0.00027671,7]
[334450184,1723105849700,-500.0,0.00027671,7]
[334450185,1723105849710,-504.27297179,0.00027671,7]
[334450186,1723105849720,-500.0,0.00027671,7]
[334450187,1723105849730,-500.0,0.00027671,7]
[334450188,1723105849740,-151.0,0.00027671,7]
[334450189,1723105849750,-247.224032,0.00027671,7]
[334450190,1723105849760,-500.0,0.00027671,7]
[334450191,1723105849769,-500.0,0.00027671,7]
[334450192,1723105849779,-500.0,0.00027671,7]
[334450193,1723105849789,-500.0,0.00027671,7]
[334450194,1723105849799,-200.0,0.00027671,7]
[334450195,1723105849808,-614.93,0.00027671,7]
[334450196,1723105849818,-500.0,0.00027671,7]
[334450197,1723105849828,-500.0,0.00027671,7]
[334450198,1723105849837,-500.0,0.00027671,7]
[334450199,1723105849847,-500.0,0.00027671,7]
[334450200,1723105849858,-1687.62,0.00027671,7]
[334450201,1723105849867,-500.0,0.00027671,7]
[334450202,1723105849877,-500.0,0.00027671,7]
[334450203,1723105849888,-500.0,0.00027671,7]
[334450204,1723105849898,-500.0,0.00027671,7]
[334450205,1723105849907,-500.0,0.00027671,7]
[334450206,1723105849917,-500.0,0.00027671,7]
[334450207,1723105849928,-500.0,0.00027671,7]
[334450208,1723105849937,-502.44930886,0.00027671,7]
[334450209,1723105849947,-503.3243461,0.00027671,7]
[334450210,1723105849959,-500.0,0.00027671,7]
[334450211,1723105849969,-500.0,0.00027671,7]
[334450212,1723105849978,-500.0,0.00027671,7]
[334450213,1723105849988,-500.0,0.00027671,7]
[334450214,1723105849998,-212.26191057,0.00027671,7]
[334450215,1723105850008,-503.52231645,0.00027671,7]
[334450216,1723105850018,-500.0,0.00027671,7]
[334450217,1723105850028,-501.47377201,0.00027671,7]
[334450218,1723105850039,-975.82,0.00027671,7]
[334450219,1723105850049,-540.51,0.00027671,7]
[334450220,1723105850059,-500.0,0.00027671,7]
[334450221,1723105850068,-500.0,0.00027671,7]
[334450222,1723105850079,-500.0,0.00027671,7]
[334450223,1723105850090,-580.03293539,0.00027671,7]
[334450224,1723105850099,-500.0,0.00027671,7]
[334450225,1723105850109,-896.82,0.00027671,7]